{"text_format":"3","workbook":"xlsx","n_sheets":3,"sheets":["Sheet1","Sheet2","Sheet3"],"read":"whole","date_system":"1900"}

{"sheet":"Sheet1","index":0,"n_rows":86,"n_cols":5,"rows_kept":86}
["ANNEXURE C: PRICING SCHEDULE "]
["Delivery costs not to be included in cost and msut be quoted separately for each order"]
["No.","Product Description","Estimated QTY","Unit price Including VAT. ","Total Price (Incl VAT) "]
[1,"1.5V AAA Battery",10,null,{"$f":"+C4*D4","v":{"v":0,"d":"0.00"}}]
[2,"Probe White Handle 300mm Lumberg cable 1m",10,null,{"v":0,"d":"0.00"}]
[3,"Thermistor Probe 300mm Black handle 1m",10,null,{"v":0,"d":"0.00"}]
[4,"C42C Thermometer",80,null,{"v":0,"d":"0.00"}]
[5,"Mod 4.5 Probe & Female Minisub C42",20,null,{"v":0,"d":"0.00"}]
[6,"PX22L/C Thermistor penetration probe 100mm  ",66,null,{"v":0,"d":"0.00"}]
[7,"SANAS Certificate (upon request) SANAS Certificate Temperature 3 Probe (upon request)",34,null,{"v":0,"d":"0.00"}]
[8,"Security strapping for C42",82,null,{"v":0,"d":"0.00"}]
[9,"KX7062 LC curley Thermistor probe 300mm",20,null,{"v":0,"d":"0.00"}]
[10,"CENTRE 375 Plus PT100 4 Wire Probe",10,null,{"v":0,"d":"0.00"}]
[11,"Bulk Probe (1.5m) ",10,null,{"v":0,"d":"0.00"}]
[12,"Bag Probe (C2)",10,null,{"v":0,"d":"0.00"}]
[13,"Popcorn Probe (Thin Probe)",10,null,{"v":0,"d":"0.00"}]
[14,"Atago Master T 0-33% Brix (Optical)",31,null,{"v":0,"d":"0.00"}]
[15,"Atago Master 53Alpha 0-53% Brix ",10,null,{"v":0,"d":"0.00"}]
[16,"Atago Pal 1 Pocket Electronic 0-53% Brix",10,null,{"v":0,"d":"0.00"}]
[17,"Refractometer Letter of Compliance ",10,null,{"v":0,"d":"0.00"}]
[18,"SANAS Certificate Penetrometer  ",10,null,{"v":0,"d":"0.00"}]
[19,"FT444 Penetrometer - 20Kg FT444 Penetrometer - 20Kg",22,null,{"v":0,"d":"0.00"}]
[20,"Penetrometer Calibration Jig",10,null,{"v":0,"d":"0.00"}]
[21,"Scale for Penetrometer Jig 30 x 0.1kg",10,null,{"v":0,"d":"0.00"}]
[22,"Lux Meter - Testo 540",10,null,{"v":0,"d":"0.00"}]
[23,"Certification of Light Meter",10,null,{"v":0,"d":"0.00"}]
[24,"CITRUS CALLIPER (30MM-120MM)",10,null,{"v":0,"d":"0.00"}]
[25,"CITRUS CALLIPER (90MM-190MM) ",10,null,{"v":0,"d":"0.00"}]
[26,"SANAS Certificate Citrus Caliber (sizer)",10,null,{"v":0,"d":"0.00"}]
[27,"Vernier Caliber 150mm Metric(sizer) manual/digital ",21,null,{"v":0,"d":"0.00"}]
[28,"SANAS Certificate Vernier Caliber(sizer)",10,null,{"v":0,"d":"0.00"}]
[29,"Fixman 8\" 200mm Diagonal size cutters OLFA Extra Heavy Duty Cutter XH-1 25mm",6,null,{"v":0,"d":"0.00"}]
[30,"Inspection Knives (various blades with different sizes) \n•\tFHG S Knife 26cm Black Handle,\n•\tVictorinox budding knife 39010,\n•\tVictorinox 11cm Serrated Edge Knife,\n•\tVictorinox 11cm Folding knife Plain edge,\n•\tVictorinox 11cm Folding Knife Serrated, Grunter Butchers Knife Black 30cm,\n•\tTramontina Boning Knife 15 cm (Black)",60,null,{"v":0,"d":"0.00"}]
[31,"Blades 5 Pack 25mm OLFA Blades HB-5B 5 pack 25mm",20,null,{"v":0,"d":"0.00"}]
[32," Extra Heavy Duty Cutter 25mm various option available, retractable, /foldable ",20,null,{"v":0,"d":"0.00"}]
[33,"Stanley Metal Retractable Knife",50,null,{"$f":"+C36*D36","v":{"v":0,"d":"0.00"}}]
[34,"Fruit & Veg Guillotine 450x320 Foodsafe",10,null,{"v":0,"d":"0.00"}]
[35,"Masspiece Cast Iron 100g with a case Masspiece Brass - 100g with a case",63,null,{"v":0,"d":"0.00"}]
[36,"Masspiece Cast Iron 2kg with a case Mass Piece Steel 2kg (Cylinder) with a case",61,null,{"v":0,"d":"0.00"}]
[37,"Mass Piece Set 1g - 5kg Box",10,null,{"v":0,"d":"0.00"}]
[38,"Masspiece Cast Iron 200g",10,null,{"v":0,"d":"0.00"}]
[39,"Mass Piece Cast Iron 500g",10,null,{"v":0,"d":"0.00"}]
[40,"Mass Piece Cast Iron 5kg",10,null,{"v":0,"d":"0.00"}]
[41,"Mass Piece Cast Iron 10kg",10,null,{"v":0,"d":"0.00"}]
[42,"20Kg Mass Piece",10,null,{"v":0,"d":"0.00"}]
[43,"Verification of Mass pieces",10,null,{"v":0,"d":"0.00"}]
[44,"SANAS Certificate Mass pieces",10,null,{"v":0,"d":"0.00"}]
[45,"Measuring Cylinder 190mm Measuring Cylinder 190mm diameter",10,null,{"v":0,"d":"0.00"}]
[46,"Measuring Cylinder 90mm diameter Measuring Cylinder 90mm diameter",10,null,{"v":0,"d":"0.00"}]
[47,"SANAS Certificate for Cylindrical Dim ",10,null,{"v":0,"d":"0.00"}]
[48,"Measuring Cylinder 55Mm Diameter",10,null,{"v":0,"d":"0.00"}]
[49,"Measuring Cylinder 65Mm Diameter",10,null,{"v":0,"d":"0.00"}]
[50,"Measuring Cylinder 75Mm Diameter",10,null,{"v":0,"d":"0.00"}]
[51,"Measuring Cylinder 80mm diameter",10,null,{"v":0,"d":"0.00"}]
[52,"Measuring Cylinder 140mm diameter",10,null,{"v":0,"d":"0.00"}]
[53,"Measuring Cylinder 105mm diameter",10,null,{"v":0,"d":"0.00"}]
[54,"Measuring Cylinder 115mm diameter",10,null,{"v":0,"d":"0.00"}]
[55,"Measuring Cylinder 125mm diameter",10,null,{"v":0,"d":"0.00"}]
[56,"Pipette [20ml] graduated Bulb Pipette filler Universal",10,null,{"v":0,"d":"0.00"}]
[57,"Pipette filler universal Pipette (20ml) graduated",10,null,{"v":0,"d":"0.00"}]
[58,"Burrete Chemical Bottle 1L Dr Schillings Burette 50ml set – bottle not separate",10,null,{"v":0,"d":"0.00"}]
[59,"Burrete selffilling Dr Schillings Burette 50ml ",10,null,{"v":0,"d":"0.00"}]
[60,"Erlenmeyer Conical Flask 300ml",10,null,{"v":0,"d":"0.00"}]
[61,"Jug & Handle Pp 1000ml",10,null,{"v":0,"d":"0.00"}]
[62,"Sizing Rings: Table Grapes - Full set – 11;12;13;14;15;16;17;18;19;20;21;22;23;24;25;26;27;28;29;30\n- Material : 0.9mm aluminum\n - Detail : pint black / logo blue\n - Background : natural anodised\n - Attach : Interlocking Screw / Laser cut holes\n11;12 and 13 – option to be ordered individually\nAll sizes - option to order individually",10,null,{"v":0,"d":"0.00"}]
[63,"Sizing Rings: Pome Full Set - 30;35;40;42;43;50;52;55;56;57;58;59;60;61;62;63;65;68;70;73;75;80\n- Material : 0.9mm aluminum\n - Detail : pint black / logo blue\n - Background : natural anodised\n - Attach : Interlocking Screw / Laser cut holes\n41;44;46;47;48;49;51;53;54;64 - option to be included in full set or order individually",10,null,{"v":0,"d":"0.00"}]
[64,"Sizing Rings: Stone Full Set - 30;35;38;40;42;43;45;50;52;55;56;57;58;59;60;61;62;63;65;67;68;70;73;74;75;76;77;81;91;92\n - Material : 0.9mm aluminum\n - Detail : pint black / logo blue\n - Background : natural anodised\n - Attach : Interlocking Screw / Laser cut holes\n51;66;71;72;76;77;79;80;85;90 - option to be included in full set or order individually",10,null,{"v":0,"d":"0.00"}]
[65,"Sizing Rings: Stone Partial Set - 51;66;67;72;79;80;85;90;91\n- Material : 0.9mm aluminum\n - Detail : pint black / logo blue\n - Background : natural anodised\n - Attach : Interlocking Screw / Laser cut holes\nOption to order individual rings",10,null,{"$f":"+C68*D68","v":{"v":0,"d":"0.00"}}]
[66,"Sizing Rings: Litchi Set - 21;22;28;29;30;31;32;33;34;35;36;37;38;39;40\t\n - Material : 0.9mm aluminum\n - Detail : pint black / logo blue\n - Background : natural anodised\n - Attach : Interlocking Screw / Laser cut holes\nOption to order individual rings",10,null,{"v":0,"d":"0.00"}]
[67,"Sizing Rings: Cherry Set - 16;17;18;20;25;30;31;32;33;34;35;36;37;38;39;40\n - Material : 0.9mm aluminum\n - Detail : pint black / logo blue\n - Background : natural anodised\n - Attach : Interlocking Screw / Laser cut holes\nOption to order individual rings",10,null,{"v":0,"d":"0.00"}]
[68,"Sizing Rings: Onions Set (Citrus Calipre generally used) - 35;40;50;60;70;80;90;100 \n - Material : 0.9mm aluminum\n - Detail : pint black / logo blue\n - Background : natural anodised\n - Attach : Interlocking Screw / Laser cut holes\nOption to order individual rings",10,null,{"v":0,"d":"0.00"}]
[69,"Sizing Rings: Lemons Set (Citrus Calipre generally used) - 50;51;54;56;59;63;66;69;72;75\t \n - Material : 0.9mm aluminum\n - Detail : pint black / logo blue\n - Background : natural anodised\n - Attach : Interlocking Screw / Laser cut holes\nOption to order individual rings\n",10,null,{"v":0,"d":"0.00"}]
[70,"Litchi Sizer Set 21-40mm (20pc)",5,null,{"v":0,"d":"0.00"}]
[71,"Groundnut Sieves - \"5,15 mm slotted screen\" means a hand screen having 20,0 mm by 5,15 mm slotted perforations.\t\t\t\n\"6,0 mm slotted screen\" means a hand screen having 20,0 mm by 6,0 mm slotted perforations;\t\t\t\n\"6,75 mm slotted screen\" means a hand screen having 20,0 mm by 6,75 mm slotted perforations;\t\t\t\n\"7,50 mm slotted screen\" means a hand screen having 20,0 mm by 7,50 mm slotted perforations;\t\t\t\n\"8,25 mm slotted screen\" means a hand screen having 20,0 mm by 8,25 mm slotted perforations;\t\t\t\n\"9,0 mm slotted screen\" means a hand screen having 20,0 mm by 9,0 mm slotted perforations;  and ",10,null,{"v":0,"d":"0.00"}]
[72,"Maize Sieves - \"6,35 mm round-hole sieve\" means a sieve --\t\t\t\n(a) With a flat metal sheet bottom of 1.0 mm thickness perforated with round holes of 6,35 mm (± 0.05) in diameter, that are arranged with the centres of the holes at the points of intersection of an equilateral triangular grid with a pitch of 8 mm;\t\n(b) Of which the upper surface of the bottom is smooth; \t\t\n(c) The frame of which is at least 40 mm high;\t\t\n(d) With an inner width of at least 200 mm and an inner length of at least 300 mm, or, in the case of a circular sieve, an inner diameter of at least 278 mm; and\t\n(e) With the minimum area of 600 cm2  and a maximum of 750 cm2 : and\t\n(f) That fits onto a tray with a solid bottom and must be at least 20 mm above the bottom of tray.\t\t",10,null,{"v":0,"d":"0.00"}]
[73,"Wheat Sieves - “standard sieve” means  a slotted sieve - \t\t\t\n(a) With a flat bottom of metal sheet of 1,0 mm thickness with apertures 12,7 mm long and 1,8 mm wide with rounded ends. The spacing between the slots in the same row must be 2, 43 mm wide and the spacing between the rows of slots must be 2, 0 mm wide. The slots must be alternately orientated with a slot always opposite the solid inter segment of the next row of slots;\t\t\n(b) Of which the upper surface of the sieve is smooth;\t\t\n(c) With a round frame of suitable material with an inner diameter of between 300 mm and 310 mm maximum and at least 50 mm high;\t\t\n(d) That fits onto a tray with a solid bottom and must be at least 20 mm above the bottom of the tray;\t\t",10,null,{"v":0,"d":"0.00"}]
[74,"Soya Sieves - \"1, 8 mm slotted screen\" means a sieve --\t\t\t\n(a) With a flat bottom of metal sheet of 1,0 mm thickness with apertures 12,7mm long and 1,8mm wide with rounded ends. The spacing between the slots in the same row must be 2,43mm and the spacing between the rows of slots must be 2.0mm wide.  The slots must be alternately oriented with a slot always opposite the solid inter segment of the next row of slots;\t\t\n(b) Of which the upper surface of the bottom is smooth;\t\t\n(c) With a round frame of suitable material with an inner diameter of between 300mm                and 310mm maximum and at least 50 mm high; and\t\t\n(d) That fits onto a tray with a solid bottom and must be at least 20 mm above the bottom of the tray;\t\t\t\t\t\n\"4, 75 mm round-hole sieve\" means a sieve --\t\t\t\n(a) with a flat metal sheet bottom of 10 mm thickness perforated with round holes of 4,75 mm in diameter that are arranged with the centres of the holes at the points of intersection of an equilateral triangular grid with a pitch of 8 mm;\t\t\n(b) Of which the upper surface of the bottom is smooth;\t\t\n(c) The frame of which is at least 50 mm high;\t\t\n(d) With the inner width of at least 200 mm and maximum 210 mm and the inner length of at least 300 m and maximum 310 mm, or, in the case of a circular sieve, the inner diameter of at least 280 mm and maximum 305 mm;  and\t\t\n(e) That fits onto a tray with a solid bottom and must be at least 20 mm above the bottom of the tray;\t\t\n",10,null,{"v":0,"d":"0.00"}]
[75,"Sample Divider - (a) with a flat bottom of metal sheet of 1,0 mm thickness with apertures 12,7mm long and 1,8mm wide with rounded ends. The spacing between the slots in the same row must be 2,43mm and the spacing between the row of slots must be 2.0mm wide.  The slots must be alternately oriented with a slot always opposite the solid inter segment of the next row of slots;\t\t",10,null,{"v":0,"d":"0.00"}]
[76,"Sunflower Sieves - \"standard sieves for sunflower\" means --\t\t\t\n\"5.55 mm round-hole sieve\" means a hand screen with a framework of 425mm by \t 250mm with round perforations 5.55mm in diameter.\t\t\nSlotted sieve --\t\t\t\n(a) With a flat bottom of metal sheet of 1.0mm thickness with apertures 12.7mm long and 1.8mm wide with rounded ends (±0.03mm). The spacing between the slots in the same row must be 2.43mm wide and the spacing between the rows of slots must be 2.0mm wide. The slots must be alternately oriented with a slot always opposite the solid inter segment of the next row of slots;\t\t\n(b)  Of which the upper surface of the sieve is smooth;\t\t\n(c) With a round frame of suitable material with an inner diameter of at least 300mm and at least 50mm high;\t\t\n(d) That fits onto a tray with a solid bottom and must be at least 20mm above bottom of the tray;\t\t\t",10,null,{"v":0,"d":"0.00"}]
[77,"Canola Sieves - “standard sieve for canola” means a\"round-hole sieve\" \n(a)  With a flat metal sheet bottom of 1,0mm thickness perforated with round holes of 3,2mm in diameter that are arranged with the centres of the holes at the points of intersection of an equilateral triangular grid with a vertical pitch of 5mm and a horizontal pitch of 5mm;\t\t\t\n(b)  Of which the upper surface of the bottom is smooth;\t\t\t\n(c)  With a wooden frame which is at least 35mm high;\t\t\t\n(d)  with the inner width of at least 200mm and the inner length of at least 350mm",10,null,{"v":0,"d":"0.00"}]
[78,"Maize Products - \"6.35 mm sieve\" means a sieve with a wire cloth screening bottom with apertures of 6.35 mm by 6.35 mm and a wire diameter of 1.4 mm;\t\t\n\"4.0 mm sieve\" means a sieve with a wire cloth screening bottom with apertures of 4.0 mm by 4.0 mm and a wire diameter of 1.4 mm; \t\t\t\n\"2.36 mm sieve\" means a sieve with a wire cloth screening bottom with apertures of 2.36 mm by 2.36 and a wire diameter of 1.0 mm;\t\t\t\n\"2.0 mm sieve\" means a sieve with a wire cloth screening bottom with apertures of 2.0 mm by 2.0 mm and a wire diameter of 0.9 mm;\t\t\t\n\"1.4 mm sieve\" means a sieve with a wire cloth screening bottom with apertures of 1.4 mm by 1.4 mm and a wire diameter of 0.71 mm;\t\t\t\n\"1.18 mm sieve\" means a sieve with a wire cloth screening bottom with apertures of 1.18 mm by 1.18 mm and a wire diameter of 0.63 mm;\t\t\t\n\"1.0 mm sieve\" means a sieve with a wire cloth screening bottom with apertures of 1.0 mm by 1.0 mm and a wire diameter of 0.56 mm;\t\t\t\n\"0.850 mm sieve\" means a sieve with a wire cloth screening bottom with apertures of 0.850 mm by 0.850 mm and a wire diameter of 0.50 mm; \t\t\t\n\"0.5 mm sieve\" means a sieve with a wire cloth screening bottom with apertures of 0.5 mm by 0.5 mm a wire diameter of 0.315 mm; and\t\t\t\n\"0.3 mm sieve\" means a sieve with a wire cloth screening bottom with apertures of 0.3 mm by 0.3 mm and a wire diameter of 0.20 mm.\t\t\t",10,null,{"v":0,"d":"0.00"}]
[79,"OHAUS MB45 moisture analyser",10,null,{"v":0,"d":"0.00"}]
[80,"Magnifier M0161 35mm Linen Tester",31,null,{"v":0,"d":"0.00"}]
[81,"Universal Clip-On Lens Holder. Screw the lens of your choice into the clip and simply place it over your device's camera. The lenses included in this set can be used with a wide range of cell phones and mobile devices including iPhone 6, 6+, 5, 5C, 5S, 4, 3; Samsung Galaxy S5, S4, S3; iPad 2, 3, 4, Air; and many more",10,null,{"v":0,"d":"0.00"}]
[82,"Inspection Scale (Minimum 0.1g and measuring up to 1kg)",10,null,{"v":0,"d":"0.00"}]
[83,"Customer Logo Engraving",10,null,{"v":0,"d":"0.00"}]

{"sheet":"Sheet2","index":1,"n_rows":77,"n_cols":2,"rows_kept":77,"hidden":true}
["Black pens fine point and click","Box of 50 "]
["Blue pens fine point and click","Box of 50"]
["Red pens fine point and click","Box of 50"]
["Marlin Ultra Glide pen 0.7","Pack of 5"]
["Ruler","Each"]
["Eraser","Each"]
["Pencil","Box of 50"]
["Stapler","Each"]
["Staples 26/6","Box"]
["Staple Remover","Each"]
["Blue ink","Each"]
["Black ink","Each"]
["Red ink","Each"]
["Highlighters","Pack of 10"]
["Pritt","Each"]
["Pre stick","Each"]
["Calculator","Each"]
["White board markers assorted colours","Pack of 10"]
["Cube refill","Each"]
["Sticky notes/ yellow post it ","Pack of 6"]
["Thick clear tape","Each"]
["Scissors","Each"]
["Manilla Folder 100 sheets  yellow","100 Sheets pack"]
["Manilla Folder 100 sheets  green","100 Sheets pack"]
["Laminating A4 pouch 150 mic","Pack of 10"]
[" A4 PVS plastic sleeves 100 per pack","Pack of 100"]
["PVC File dividers A-Z or 1-10","Pack"]
["Lever arch file 70mm and 40mm polyprop","Each"]
["Clear packaging tape ","Each"]
["Brown buffer tape to seal samples sen to lab","Each"]
["3m heavy duty tape mounting","Each"]
["Liquid to clean whiteboard","Each"]
["Pouch for id cards","237 ml each"]
["AAA duracell batteries","Pack of 12"]
["AA duracel batteries","Pack of 12"]
["File fasteners","Pack of 50"]
["Elastic bands","100g"]
["Finger cone various sizes","Pack of 10"]
["Gel pen","Box of 40"]
["Diaries A4 and A5 annual","Each"]
["Masonite clip board","Each"]
["Photocopy paper","Box of 5 reams (500 sheets)"]
[]
["Tippex","Each"]
["Punch Large and small","Each"]
["Large stapler","Each"]
["Staples for large stapler","Box"]
["Pen organizer  holders","Each"]
["Optiplan Folder 440 H/W with flaps","Pack"]
["Pushpin","box"]
["Waste Paper bin-wire","Each"]
["Notice Board","Each"]
["Frames A4","Each"]
["Sorter A-Z","Each"]
["Optiplan Plastic container / holders for Files","Each"]
["Brother barcoded labels","Roll"]
["Small and large ink pads","Each"]
["Selfinking stamps – date stamp","each"]
["Selfinking stamps – passed for export stamp","Each"]
["Selfinking stamps – reject stamp","each"]
["Selfinking stamps – personnel nr stamp","each"]
["Selfinking stamps","each"]
["Selfinking stamp ink – red - stampwell","each"]
["Selfinking stamp ink – blue - stampwell","each"]
["Selfinking stamp ink – black - stampwell","each"]
["Bic clic ballpoint pen medium - black","each"]
["Bic clic ballpoint pen medium - blue","each"]
["Bic ballpoint office pen medium Waltons – red","each"]
["A4 Rotatrim copy paper – 5 reams in box","Box of 5 reams (500 sheets)"]
[]
["Manilla folders – blue","Pack of 100 sheets"]
["Paperclips – king size wavy","Box of 100"]
["Paperclips – giant","Box of 100"]
["EK700 Fine Permanent marker","each"]
["EK70 Bullet point permanent marker","each"]
["Flip file display book (different pocket sizes)","each"]
["Metal file fasteners","Box of 50"]

{"sheet":"Sheet3","index":2,"n_rows":84,"n_cols":10,"rows_kept":84,"hidden":true,"merged":[[1,1,1,5],[4,1,4,3],[5,1,5,3],[7,1,8,1],[7,2,8,2],[7,3,8,3],[7,4,7,5],[7,6,7,7],[7,8,7,9],[74,1,74,5],[77,1,77,5],[78,1,78,5],[79,1,79,5],[81,1,81,5],[82,1,82,5],[83,1,83,5]]}
[]
[null,"ANNEXURE A: PRICING SCHEDULE "]
[null,"RFP/OPSLAB/CHEM/2021/05"]
[]
[null,"FOREX % of the total price per unit ",null,null,"%"]
[null,"NON- FOREX % of the total price per unit ",null,null,"%"]
[]
[null,"Product Description ","Unit of Measure (UOM)","Quantity","Year 1",null,"Year 2",null,"Year 3"]
[{"$nulls":4},"Unit price Including VAT. ","Total Price VAT Incl.","Unit price Including VAT. ","Total Price VAT Incl.","Unit price Including VAT. ","Total Price VAT Incl."]
[null,{"$f":"Sheet2!A1","v":"Black pens fine point and click"},{"$f":"Sheet2!B1","v":"Box of 50 "},1,null,{"$f":"D10*E10","v":{"v":0,"d":"R 0.00"}},null,{"$f":"D10*G10","v":{"v":0,"d":"R 0.00"}},null,{"$f":"D10*I10","v":{"v":0,"d":"R 0.00"}}]
[null,{"$f":"Sheet2!A2","v":"Blue pens fine point and click"},{"$f":"Sheet2!B2","v":"Box of 50"},1,null,{"$f":"D11*E11","v":{"v":0,"d":"R 0.00"}},null,{"$f":"D11*G11","v":{"v":0,"d":"R 0.00"}},null,{"$f":"D11*I11","v":{"v":0,"d":"R 0.00"}}]
[null,{"$f":"Sheet2!A3","v":"Red pens fine point and click"},{"$f":"Sheet2!B3","v":"Box of 50"},1,null,{"v":0,"d":"R 0.00"},null,{"v":0,"d":"R 0.00"},null,{"v":0,"d":"R 0.00"}]
[null,{"$f":"Sheet2!A4","v":"Marlin Ultra Glide pen 0.7"},{"$f":"Sheet2!B4","v":"Pack of 5"},1,null,{"v":0,"d":"R 0.00"},null,{"v":0,"d":"R 0.00"},null,{"v":0,"d":"R 0.00"}]
[null,{"$f":"Sheet2!A5","v":"Ruler"},{"$f":"Sheet2!B5","v":"Each"},1,null,{"v":0,"d":"R 0.00"},null,{"v":0,"d":"R 0.00"},null,{"v":0,"d":"R 0.00"}]
[null,{"$f":"Sheet2!A6","v":"Eraser"},{"$f":"Sheet2!B6","v":"Each"},1,null,{"v":0,"d":"R 0.00"},null,{"v":0,"d":"R 0.00"},null,{"v":0,"d":"R 0.00"}]
[null,{"$f":"Sheet2!A7","v":"Pencil"},{"$f":"Sheet2!B7","v":"Box of 50"},1,null,{"v":0,"d":"R 0.00"},null,{"v":0,"d":"R 0.00"},null,{"v":0,"d":"R 0.00"}]
[null,{"$f":"Sheet2!A8","v":"Stapler"},{"$f":"Sheet2!B8","v":"Each"},1,null,{"v":0,"d":"R 0.00"},null,{"v":0,"d":"R 0.00"},null,{"v":0,"d":"R 0.00"}]
[null,{"$f":"Sheet2!A9","v":"Staples 26/6"},{"$f":"Sheet2!B9","v":"Box"},1,null,{"v":0,"d":"R 0.00"},null,{"v":0,"d":"R 0.00"},null,{"v":0,"d":"R 0.00"}]
[null,{"$f":"Sheet2!A10","v":"Staple Remover"},{"$f":"Sheet2!B10","v":"Each"},1,null,{"v":0,"d":"R 0.00"},null,{"v":0,"d":"R 0.00"},null,{"v":0,"d":"R 0.00"}]
[null,{"$f":"Sheet2!A11","v":"Blue ink"},{"$f":"Sheet2!B11","v":"Each"},1,null,{"v":0,"d":"R 0.00"},null,{"v":0,"d":"R 0.00"},null,{"v":0,"d":"R 0.00"}]
[null,{"$f":"Sheet2!A12","v":"Black ink"},{"$f":"Sheet2!B12","v":"Each"},1,null,{"v":0,"d":"R 0.00"},null,{"v":0,"d":"R 0.00"},null,{"v":0,"d":"R 0.00"}]
[null,{"$f":"Sheet2!A13","v":"Red ink"},{"$f":"Sheet2!B13","v":"Each"},1,null,{"v":0,"d":"R 0.00"},null,{"v":0,"d":"R 0.00"},null,{"v":0,"d":"R 0.00"}]
[null,{"$f":"Sheet2!A14","v":"Highlighters"},{"$f":"Sheet2!B14","v":"Pack of 10"},1,null,{"v":0,"d":"R 0.00"},null,{"v":0,"d":"R 0.00"},null,{"v":0,"d":"R 0.00"}]
[null,{"$f":"Sheet2!A15","v":"Pritt"},{"$f":"Sheet2!B15","v":"Each"},1,null,{"v":0,"d":"R 0.00"},null,{"v":0,"d":"R 0.00"},null,{"v":0,"d":"R 0.00"}]
[null,{"$f":"Sheet2!A16","v":"Pre stick"},{"$f":"Sheet2!B16","v":"Each"},1,null,{"v":0,"d":"R 0.00"},null,{"v":0,"d":"R 0.00"},null,{"v":0,"d":"R 0.00"}]
[null,{"$f":"Sheet2!A17","v":"Calculator"},{"$f":"Sheet2!B17","v":"Each"},1,null,{"v":0,"d":"R 0.00"},null,{"v":0,"d":"R 0.00"},null,{"v":0,"d":"R 0.00"}]
[null,{"$f":"Sheet2!A18","v":"White board markers assorted colours"},{"$f":"Sheet2!B18","v":"Pack of 10"},1,null,{"v":0,"d":"R 0.00"},null,{"v":0,"d":"R 0.00"},null,{"v":0,"d":"R 0.00"}]
[null,{"$f":"Sheet2!A19","v":"Cube refill"},{"$f":"Sheet2!B19","v":"Each"},1,null,{"v":0,"d":"R 0.00"},null,{"v":0,"d":"R 0.00"},null,{"v":0,"d":"R 0.00"}]
[null,{"$f":"Sheet2!A20","v":"Sticky notes/ yellow post it "},{"$f":"Sheet2!B20","v":"Pack of 6"},1,null,{"v":0,"d":"R 0.00"},null,{"v":0,"d":"R 0.00"},null,{"v":0,"d":"R 0.00"}]
[null,{"$f":"Sheet2!A21","v":"Thick clear tape"},{"$f":"Sheet2!B21","v":"Each"},1,null,{"v":0,"d":"R 0.00"},null,{"v":0,"d":"R 0.00"},null,{"v":0,"d":"R 0.00"}]
[null,{"$f":"Sheet2!A22","v":"Scissors"},{"$f":"Sheet2!B22","v":"Each"},1,null,{"v":0,"d":"R 0.00"},null,{"v":0,"d":"R 0.00"},null,{"v":0,"d":"R 0.00"}]
[null,{"$f":"Sheet2!A23","v":"Manilla Folder 100 sheets  yellow"},{"$f":"Sheet2!B23","v":"100 Sheets pack"},1,null,{"v":0,"d":"R 0.00"},null,{"v":0,"d":"R 0.00"},null,{"v":0,"d":"R 0.00"}]
[null,{"$f":"Sheet2!A24","v":"Manilla Folder 100 sheets  green"},{"$f":"Sheet2!B24","v":"100 Sheets pack"},1,null,{"v":0,"d":"R 0.00"},null,{"v":0,"d":"R 0.00"},null,{"v":0,"d":"R 0.00"}]
[null,{"$f":"Sheet2!A25","v":"Laminating A4 pouch 150 mic"},{"$f":"Sheet2!B25","v":"Pack of 10"},1,null,{"v":0,"d":"R 0.00"},null,{"v":0,"d":"R 0.00"},null,{"v":0,"d":"R 0.00"}]
[null,{"$f":"Sheet2!A26","v":" A4 PVS plastic sleeves 100 per pack"},{"$f":"Sheet2!B26","v":"Pack of 100"},1,null,{"v":0,"d":"R 0.00"},null,{"v":0,"d":"R 0.00"},null,{"v":0,"d":"R 0.00"}]
[null,{"$f":"Sheet2!A27","v":"PVC File dividers A-Z or 1-10"},{"$f":"Sheet2!B27","v":"Pack"},1,null,{"v":0,"d":"R 0.00"},null,{"v":0,"d":"R 0.00"},null,{"v":0,"d":"R 0.00"}]
[null,{"$f":"Sheet2!A28","v":"Lever arch file 70mm and 40mm polyprop"},{"$f":"Sheet2!B28","v":"Each"},1,null,{"v":0,"d":"R 0.00"},null,{"v":0,"d":"R 0.00"},null,{"v":0,"d":"R 0.00"}]
[null,{"$f":"Sheet2!A29","v":"Clear packaging tape "},{"$f":"Sheet2!B29","v":"Each"},1,null,{"v":0,"d":"R 0.00"},null,{"v":0,"d":"R 0.00"},null,{"v":0,"d":"R 0.00"}]
[null,{"$f":"Sheet2!A30","v":"Brown buffer tape to seal samples sen to lab"},{"$f":"Sheet2!B30","v":"Each"},1,null,{"v":0,"d":"R 0.00"},null,{"v":0,"d":"R 0.00"},null,{"v":0,"d":"R 0.00"}]
[null,{"$f":"Sheet2!A31","v":"3m heavy duty tape mounting"},{"$f":"Sheet2!B31","v":"Each"},1,null,{"v":0,"d":"R 0.00"},null,{"v":0,"d":"R 0.00"},null,{"v":0,"d":"R 0.00"}]
[null,{"$f":"Sheet2!A32","v":"Liquid to clean whiteboard"},{"$f":"Sheet2!B32","v":"Each"},1,null,{"v":0,"d":"R 0.00"},null,{"v":0,"d":"R 0.00"},null,{"v":0,"d":"R 0.00"}]
[null,{"$f":"Sheet2!A33","v":"Pouch for id cards"},{"$f":"Sheet2!B33","v":"237 ml each"},1,null,{"v":0,"d":"R 0.00"},null,{"v":0,"d":"R 0.00"},null,{"v":0,"d":"R 0.00"}]
[null,{"$f":"Sheet2!A34","v":"AAA duracell batteries"},{"$f":"Sheet2!B34","v":"Pack of 12"},1,null,{"v":0,"d":"R 0.00"},null,{"v":0,"d":"R 0.00"},null,{"v":0,"d":"R 0.00"}]
[null,{"$f":"Sheet2!A35","v":"AA duracel batteries"},{"$f":"Sheet2!B35","v":"Pack of 12"},1,null,{"v":0,"d":"R 0.00"},null,{"v":0,"d":"R 0.00"},null,{"v":0,"d":"R 0.00"}]
[null,{"$f":"Sheet2!A36","v":"File fasteners"},{"$f":"Sheet2!B36","v":"Pack of 50"},1,null,{"v":0,"d":"R 0.00"},null,{"v":0,"d":"R 0.00"},null,{"v":0,"d":"R 0.00"}]
[null,{"$f":"Sheet2!A37","v":"Elastic bands"},{"$f":"Sheet2!B37","v":"100g"},1,null,{"v":0,"d":"R 0.00"},null,{"v":0,"d":"R 0.00"},null,{"v":0,"d":"R 0.00"}]
[null,{"$f":"Sheet2!A38","v":"Finger cone various sizes"},{"$f":"Sheet2!B38","v":"Pack of 10"},1,null,{"v":0,"d":"R 0.00"},null,{"v":0,"d":"R 0.00"},null,{"v":0,"d":"R 0.00"}]
[null,{"$f":"Sheet2!A39","v":"Gel pen"},{"$f":"Sheet2!B39","v":"Box of 40"},1,null,{"v":0,"d":"R 0.00"},null,{"v":0,"d":"R 0.00"},null,{"v":0,"d":"R 0.00"}]
[null,{"$f":"Sheet2!A40","v":"Diaries A4 and A5 annual"},{"$f":"Sheet2!B40","v":"Each"},1,null,{"v":0,"d":"R 0.00"},null,{"v":0,"d":"R 0.00"},null,{"v":0,"d":"R 0.00"}]
[null,{"$f":"Sheet2!A41","v":"Masonite clip board"},{"$f":"Sheet2!B41","v":"Each"},1,null,{"v":0,"d":"R 0.00"},null,{"v":0,"d":"R 0.00"},null,{"v":0,"d":"R 0.00"}]
[null,{"$f":"Sheet2!A42","v":"Photocopy paper"},{"$f":"Sheet2!B42","v":"Box of 5 reams (500 sheets)"},1,null,{"v":0,"d":"R 0.00"},null,{"v":0,"d":"R 0.00"},null,{"v":0,"d":"R 0.00"}]
[null,{"$f":"Sheet2!A43","v":0},{"$f":"Sheet2!B43","v":0},1,null,{"v":0,"d":"R 0.00"},null,{"v":0,"d":"R 0.00"},null,{"v":0,"d":"R 0.00"}]
[null,{"$f":"Sheet2!A44","v":"Tippex"},{"$f":"Sheet2!B44","v":"Each"},1,null,{"v":0,"d":"R 0.00"},null,{"v":0,"d":"R 0.00"},null,{"v":0,"d":"R 0.00"}]
[null,{"$f":"Sheet2!A45","v":"Punch Large and small"},{"$f":"Sheet2!B45","v":"Each"},1,null,{"v":0,"d":"R 0.00"},null,{"v":0,"d":"R 0.00"},null,{"v":0,"d":"R 0.00"}]
[null,{"$f":"Sheet2!A46","v":"Large stapler"},{"$f":"Sheet2!B46","v":"Each"},1,null,{"v":0,"d":"R 0.00"},null,{"v":0,"d":"R 0.00"},null,{"v":0,"d":"R 0.00"}]
[null,{"$f":"Sheet2!A47","v":"Staples for large stapler"},{"$f":"Sheet2!B47","v":"Box"},1,null,{"v":0,"d":"R 0.00"},null,{"v":0,"d":"R 0.00"},null,{"v":0,"d":"R 0.00"}]
[null,{"$f":"Sheet2!A48","v":"Pen organizer  holders"},{"$f":"Sheet2!B48","v":"Each"},1,null,{"v":0,"d":"R 0.00"},null,{"v":0,"d":"R 0.00"},null,{"v":0,"d":"R 0.00"}]
[null,{"$f":"Sheet2!A49","v":"Optiplan Folder 440 H/W with flaps"},{"$f":"Sheet2!B49","v":"Pack"},1,null,{"v":0,"d":"R 0.00"},null,{"v":0,"d":"R 0.00"},null,{"v":0,"d":"R 0.00"}]
[null,{"$f":"Sheet2!A50","v":"Pushpin"},{"$f":"Sheet2!B50","v":"box"},1,null,{"v":0,"d":"R 0.00"},null,{"v":0,"d":"R 0.00"},null,{"v":0,"d":"R 0.00"}]
[null,{"$f":"Sheet2!A51","v":"Waste Paper bin-wire"},{"$f":"Sheet2!B51","v":"Each"},1,null,{"v":0,"d":"R 0.00"},null,{"v":0,"d":"R 0.00"},null,{"v":0,"d":"R 0.00"}]
[null,{"$f":"Sheet2!A52","v":"Notice Board"},{"$f":"Sheet2!B52","v":"Each"},1,null,{"v":0,"d":"R 0.00"},null,{"v":0,"d":"R 0.00"},null,{"v":0,"d":"R 0.00"}]
[null,{"$f":"Sheet2!A53","v":"Frames A4"},{"$f":"Sheet2!B53","v":"Each"},1,null,{"v":0,"d":"R 0.00"},null,{"v":0,"d":"R 0.00"},null,{"v":0,"d":"R 0.00"}]
[null,{"$f":"Sheet2!A54","v":"Sorter A-Z"},{"$f":"Sheet2!B54","v":"Each"},1,null,{"v":0,"d":"R 0.00"},null,{"v":0,"d":"R 0.00"},null,{"v":0,"d":"R 0.00"}]
[null,{"$f":"Sheet2!A55","v":"Optiplan Plastic container / holders for Files"},{"$f":"Sheet2!B55","v":"Each"},1,null,{"v":0,"d":"R 0.00"},null,{"v":0,"d":"R 0.00"},null,{"v":0,"d":"R 0.00"}]
[null,{"$f":"Sheet2!A56","v":"Brother barcoded labels"},{"$f":"Sheet2!B56","v":"Roll"},1,null,{"v":0,"d":"R 0.00"},null,{"v":0,"d":"R 0.00"},null,{"v":0,"d":"R 0.00"}]
[null,{"$f":"Sheet2!A57","v":"Small and large ink pads"},{"$f":"Sheet2!B57","v":"Each"},1,null,{"v":0,"d":"R 0.00"},null,{"v":0,"d":"R 0.00"},null,{"v":0,"d":"R 0.00"}]
[null,{"$f":"Sheet2!A58","v":"Selfinking stamps – date stamp"},{"$f":"Sheet2!B58","v":"each"},1,null,{"v":0,"d":"R 0.00"},null,{"v":0,"d":"R 0.00"},null,{"v":0,"d":"R 0.00"}]
[null,{"$f":"Sheet2!A59","v":"Selfinking stamps – passed for export stamp"},{"$f":"Sheet2!B59","v":"Each"},1,null,{"v":0,"d":"R 0.00"},null,{"v":0,"d":"R 0.00"},null,{"v":0,"d":"R 0.00"}]
[null,{"$f":"Sheet2!A60","v":"Selfinking stamps – reject stamp"},{"$f":"Sheet2!B60","v":"each"},1,null,{"v":0,"d":"R 0.00"},null,{"v":0,"d":"R 0.00"},null,{"v":0,"d":"R 0.00"}]
[null,{"$f":"Sheet2!A61","v":"Selfinking stamps – personnel nr stamp"},{"$f":"Sheet2!B61","v":"each"},1,null,{"v":0,"d":"R 0.00"},null,{"v":0,"d":"R 0.00"},null,{"v":0,"d":"R 0.00"}]
[null,{"$f":"Sheet2!A62","v":"Selfinking stamps"},{"$f":"Sheet2!B62","v":"each"},1,null,{"v":0,"d":"R 0.00"},null,{"v":0,"d":"R 0.00"},null,{"v":0,"d":"R 0.00"}]
[{"$nulls":5},{"$f":"SUM(F10:F71)","v":{"v":0,"d":"R 0.00"}},null,{"$f":"SUM(H10:H71)","v":{"v":0,"d":"R 0.00"}},null,{"$f":"SUM(J10:J71)","v":{"v":0,"d":"R 0.00"}}]
[]
[]
[]
[]
[null,"Offered Annual Rebate: "]
[null,"_____ % rebate on annual increase of R 100 000.00"]
[null,"_____ % rebate on annual increase of R 200 000.00"]
[null,"_____ % rebate on annual increase of R 300 000.00"]
[]
[null,"BIDDER’S NAME: _______________________________________________"]
[null,"AUTHORISED SIGNATORY: ______________________________________"]
[null,"DATE: _____________________"]